[Event "ESTCC-50 2025"]
[Site "Swidnica"]
[Date "2025.04.07"]
[Round "3.1"]
[White "Zeidler, Sven P."]
[Black "Laszewicz, Pawel"]
[Result "0-1"]
[Annotator "RC"]
[ECO "C00"]
[WhiteElo "2143"]
[BlackElo "2011"]
[PlyCount "139"]
[EventDate "2025.04.05"]
[EventType "team-tourn"]
[EventCountry "POL"]
[SourceTitle "playchess.com"]
[Source "ChessBase"]
[SourceQuality "1"]
[WhiteTeam "Wales"]
[BlackTeam "Poland"]
[WhiteTeamCountry "WLS"]
[BlackTeamCountry "POL"]
[TimeControl "40/5400+30:1800+30"]

1. e4 {[%emt 0:00:03]} e6 {[%emt 0:00:08]} 2. d4 {[%emt 0:00:08]} c5 {[%emt 0:00:03]} 3. d5 {[%emt 0:00:06]} Nf6 {[%emt 0:00:15]} 4. Nc3 {[%emt 0:00:41]} d6 {[%emt 0:00:18]} 5. Nf3 {[%emt 0:01:40]} exd5 {[%emt 0:02:33]} 6. exd5 {[%emt 0:00:19]} Be7 {[%emt 0:00:36]} 7. Be2 {[%emt 0:01:02]} O-O {[%emt 0:00:26]} 8. O-O {[%emt 0:01:21]} Na6 {[%emt 0:00:18]} 9. Bxa6 {[%emt 0:15:37]} bxa6 {[%emt 0:00:58]} 10. Nd2 {[%emt 0:00:09]} Bf5 {[%emt 0:16:03]} 11. Nc4 {[%emt 0:01:22]} Re8 {[%emt 0:01:22]} 12. h3 {[%emt 0:07:25]} h6 {[%emt 0:03:23]} 13. Bf4 {[%emt 0:06:09]} Qc7 {[%emt 0:06:39]} 14. Ne3 {[%emt 0:06:00]} Bg6 {[%emt 0:04:54]} 15. Ne2 {[%emt 0:12:34]} Bf8 {[%emt 0:11:40]} 16. g4 {[%emt 0:07:28]} Re4 {[%emt 0:15:36]} 17. f3 {[%emt 0:03:40]} Rb4 {[%emt 0:00:51]} 18. b3 {[%emt 0:02:06]} Re8 {[%emt 0:00:23]} 19. c4 {[%emt 0:01:03]} Qe7 {[%emt 0:04:36]} 20. Ng3 {[%emt 0:05:01]} Nd7 {[%emt 0:04:52]} 21. Nef5 {[%emt 0:03:44]} Bxf5 {[%emt 0:02:21]} 22. Nxf5 {[%emt 0:00:07]} Qf6 {[%emt 0:00:21]} 23. Bd2 {[%emt 0:01:37]} Rbb8 {[%emt 0:01:23]} 24. Rc1 {[%emt 0:00:47]} g6 {[%emt 0:04:09]} 25. Bc3 {[%emt 0:03:34]} Qd8 {[%emt 0:01:43]} 26. Ng3 {[%emt 0:01:04]} Qh4 {[%emt 0:05:30]} 27. Kg2 {[%emt 0:00:57]} Nf6 {[%emt 0:01:05]} 28. Qd2 {[%emt 0:02:19]} Bg7 {[%emt 0:02:05]} 29. Rce1 {[%emt 0:00:53]} Nh7 {[%emt 0:03:03]} 30. f4 {[%emt 0:01:28]} Bxc3 {[%emt 0:04:07]} 31. Qxc3 {[%emt 0:00:41]} Qf6 {[%emt 0:00:18]} 32. Qxf6 {[%emt 0:00:43]} Nxf6 {[%emt 0:00:02]} 33. g5 {[%emt 0:01:43]} hxg5 {[%emt 0:01:25]} 34. fxg5 {[%emt 0:01:12]} Nd7 {[%emt 0:00:52]} 35. Ne4 {[%emt 0:01:32]} Rb6 {[%emt 0:00:11]} 36. Nf6+ {[%emt 0:08:35]} Nxf6 {[%emt 0:00:35]} 37. gxf6 {[%emt 0:00:08]} Rbb8 {[%emt 0:01:19]} 38. Kf3 {[%emt 0:01:30]} Kf8 {[%emt 0:01:17]} 39. Kf4 {[%emt 0:00:28]} a5 {[%emt 0:00:42]} 40. Kg5 {[%emt 0:00:00]} a4 {[%emt 0:00:00]} 41. bxa4 {[%emt 0:06:16]} Rxe1 {[%emt 0:06:26]} 42. Rxe1 {[%emt 0:00:05]} Rb2 {[%emt 0:00:07]} 43. Re3 {[%emt 0:01:31]} Rf2 {[%emt 0:01:54]} 44. Re7 {[%emt 0:02:38]} Rf5+ {[%emt 0:00:27]} 45. Kg4 {[%emt 0:00:03]} Rxf6 {[%emt 0:01:27]} 46. Rxa7 {[%emt 0:00:23]} Rf2 {[%emt 0:00:12]} 47. h4 {[%emt 0:08:19]} Kg7 {[%emt 0:15:58]} 48. h5 {[%emt 0:03:37]} gxh5+ {[%emt 0:01:25]} 49. Kxh5 {[%emt 0:00:05]} Kf6 {[%emt 0:01:52]} 50. a5 {[%emt 0:00:53]} Rxa2 {[%emt 0:01:16]} 51. a6 {[%emt 0:02:49]} Ra4 {[%emt 0:00:35]} 52. Kh6 {[%emt 0:03:43]} Rxc4 {[%emt 0:00:20]} 53. Kh7 {[%emt 0:00:07]} Ke5 {[%emt 0:00:32]} 54. Rxf7 {[%emt 0:00:27]} Kxd5 {[%emt 0:00:12]} 55. a7 {[%emt 0:00:40]} Ra4 {[%emt 0:00:11]} 56. Kg6 {[%emt 0:00:26]} c4 {[%emt 0:00:53]} 57. Kf5 {[%emt 0:00:25]} Kd4 {[%emt 0:02:24]} 58. Rd7 {[%emt 0:01:05]} d5 {[%emt 0:01:20]} 59. Rb7 {[%emt 0:01:46]} Kd3 {[%emt 0:00:32]} 60. Ke5 {[%emt 0:01:13]} d4 {[%emt 0:02:17]} 61. Rd7 {[%emt 0:00:08]} Kc3 {[%emt 0:00:16]} 62. Rxd4 {[%emt 0:03:56]} Rxa7 {[%emt 0:00:10]} 63. Rd8 {[%emt 0:00:45]} Kc2 {[%emt 0:00:45]} 64. Kd4 {[%emt 0:00:21]} c3 {[%emt 0:00:12]} 65. Rh8 {[%emt 0:00:42]} Ra4+ {[%emt 0:00:48]} 66. Ke3 {[%emt 0:00:25]} Kc1 {[%emt 0:00:31]} 67. Kd3 {[%emt 0:00:22]} c2 {[%emt 0:00:21]} 68. Rh1+ {[%emt 0:03:28]} Kb2 {[%emt 0:00:17]} 69. Rh2 {[%emt 0:00:20]} Ra3+ {[%emt 0:00:16]} 70. Kd4 0-1

[Event "ESTCC-50 2025"]
[Site "Swidnica"]
[Date "2025.04.07"]
[Round "3.2"]
[White "Machlowski, Slawomir"]
[Black "Adams, Mark"]
[Result "1/2-1/2"]
[Annotator "NA RC"]
[ECO "A00"]
[WhiteElo "1963"]
[BlackElo "1916"]
[PlyCount "35"]
[EventDate "2025.04.05"]
[EventType "team-tourn"]
[EventCountry "POL"]
[SourceTitle "playchess.com"]
[Source "ChessBase"]
[SourceQuality "1"]
[WhiteTeam "Czech Republic"]
[BlackTeam "Wales"]
[WhiteTeamCountry "CZE"]
[BlackTeamCountry "WLS"]
[TimeControl "40/5400+30:1800+30"]

1. g3 {[%emt 0:00:05]} e5 {[%emt 0:00:31]} 2. c4 {[%emt 0:00:09]} Nf6 {[%emt 0:00:22]} 3. Bg2 {[%emt 0:00:20]} d5 {[%emt 0:00:24]} 4. cxd5 {[%emt 0:00:17]} Nxd5 {[%emt 0:00:09]} 5. Nf3 {[%emt 0:00:12]} Nc6 {[%emt 0:00:42]} 6. O-O {[%emt 0:00:20]} Be7 {[%emt 0:00:22]} 7. d4 {[%emt 0:01:00]} exd4 {[%emt 0:14:29]} 8. Nxd4 {[%emt 0:00:26]} Nxd4 {[%emt 0:01:31]} 9. Qxd4 {[%emt 0:00:07]} Nf6 {[%emt 0:00:15]} 10. Qa4+ {[%emt 0:11:11]} c6 {[%emt 0:01:48]} 11. Rd1 {[%emt 0:09:07]} Qb6 {[%emt 0:02:28]} 12. Be3 {[%emt 0:02:01]} Bc5 {[%emt 0:04:28]} 13. Bxc5 {[%emt 0:01:29]} Qxc5 {[%emt 0:00:07]} 14. Qa3 {[%emt 0:01:28]} Qxa3 {[%emt 0:00:31]} 15. Nxa3 {[%emt 0:00:08]} Be6 {[%emt 0:01:02]} 16. Nc2 {[%emt 0:08:13]} O-O {[%emt 0:13:48]} 17. e4 {[%emt 0:03:17]} Rad8 {[%emt 0:02:54]} 18. b3 {[%emt 0:04:29]} 1/2-1/2

[Event "ESTCC-50 2025"]
[Site "Swidnica"]
[Date "2025.04.07"]
[Round "3.3"]
[White "Van Kemenade, Rudy"]
[Black "Kruczynski, Marek"]
[Result "1-0"]
[Annotator "NA RC"]
[ECO "A02"]
[WhiteElo "1945"]
[BlackElo "1862"]
[PlyCount "74"]
[EventDate "2025.04.05"]
[EventType "team-tourn"]
[EventCountry "POL"]
[SourceTitle "playchess.com"]
[Source "ChessBase"]
[SourceQuality "1"]
[WhiteTeam "Wales"]
[BlackTeam "Poland"]
[WhiteTeamCountry "WLS"]
[BlackTeamCountry "POL"]
[TimeControl "40/5400+30:1800+30"]

1. f4 {[%emt 0:00:04]} b6 {[%emt 0:00:43]} 2. e4 {[%emt 0:00:11]} Bb7 {[%emt 0:00:16]} 3. d3 {[%emt 0:00:12]} e6 {[%emt 0:01:36]} 4. Nf3 {[%emt 0:00:51]} d5 {[%emt 0:00:50]} 5. Nbd2 {[%emt 0:00:11]} dxe4 {[%emt 0:08:26]} 6. dxe4 {[%emt 0:00:30]} Nf6 {[%emt 0:00:32]} 7. Bb5+ {[%emt 0:01:14]} c6 {[%emt 0:04:34]} 8. Bd3 {[%emt 0:00:29]} Qc7 {[%emt 0:06:28]} 9. e5 {[%emt 0:04:34]} Nd5 {[%emt 0:02:04]} 10. Ne4 {[%emt 0:01:11]} b5 {[%emt 0:05:59]} 11. a3 {[%emt 0:04:40]} Nd7 {[%emt 0:02:25]} 12. b3 {[%emt 0:06:28]} Nc5 {[%emt 0:09:11]} 13. Nxc5 {[%emt 0:00:11]} Bxc5 {[%emt 0:00:27]} 14. c4 {[%emt 0:02:28]} bxc4 {[%emt 0:08:18]} 15. bxc4 {[%emt 0:03:52]} Nb6 {[%emt 0:07:44]} 16. Qe2 {[%emt 0:01:59]} Ba6 {[%emt 0:07:48]} 17. a4 {[%emt 0:04:19]} O-O-O {[%emt 0:13:01]} 18. a5 {[%emt 0:00:52]} Rxd3 {[%emt 0:03:54]} 19. axb6 {[%emt 0:00:21]} Qxb6 {[%emt 0:00:29]} 20. Qxd3 {[%emt 0:00:31]} Rd8 {[%emt 0:01:34]} 21. Qc2 {[%emt 0:00:30]} Bb4+ {[%emt 0:00:41]} 22. Ke2 {[%emt 0:03:10]} c5 {[%emt 0:04:07]} 23. Rd1 {[%emt 0:01:35]} Rxd1 {[%emt 0:01:44]} 24. Kxd1 {[%emt 0:00:20]} Bb7 {[%emt 0:01:41]} 25. Qd3 {[%emt 0:01:34]} a5 {[%emt 0:01:46]} 26. Ke2 {[%emt 0:03:14]} Bc6 {[%emt 0:01:18]} 27. Qd6 {[%emt 0:04:15]} Bxf3+ {[%emt 0:01:49]} 28. Kxf3 {[%emt 0:00:32]} Qxd6 {[%emt 0:00:37]} 29. exd6 {[%emt 0:00:10]} Kd7 {[%emt 0:00:12]} 30. Ba3 {[%emt 0:00:30]} Kxd6 {[%emt 0:01:23]} 31. Bxb4 {[%emt 0:00:10]} axb4 {[%emt 0:00:27]} 32. Ke4 {[%emt 0:00:47]} f5+ {[%emt 0:00:18]} 33. Kd3 {[%emt 0:00:09]} g5 {[%emt 0:00:27]} 34. g3 {[%emt 0:00:09]} h6 {[%emt 0:01:23]} 35. Ra7 {[%emt 0:00:28]} h5 {[%emt 0:01:03]} 36. fxg5 {[%emt 0:00:12]} e5 {[%emt 0:00:23]} 37. g6 {[%emt 0:00:08]} e4+ {[%emt 0:00:18]} 1-0

[Event "ESTCC-50 2025"]
[Site "Swidnica"]
[Date "2025.04.07"]
[Round "3.4"]
[White "Szydelko, Kazimierz"]
[Black "Hughes, Anthony"]
[Result "0-1"]
[Annotator "RC"]
[ECO "D50"]
[WhiteElo "1798"]
[BlackElo "1911"]
[PlyCount "88"]
[EventDate "2025.04.05"]
[EventType "team-tourn"]
[EventCountry "POL"]
[SourceTitle "playchess.com"]
[Source "ChessBase"]
[SourceQuality "1"]
[WhiteTeam "Poland"]
[BlackTeam "Wales"]
[WhiteTeamCountry "POL"]
[BlackTeamCountry "WLS"]
[TimeControl "40/5400+30:1800+30"]

1. d4 {[%emt 0:00:02]} d5 {[%emt 0:00:05]} 2. c4 {[%emt 0:00:06]} e6 3. Nc3 {[%emt 0:00:12]} Nf6 {[%emt 0:00:09]} 4. Bg5 {[%emt 0:00:16]} dxc4 {[%emt 0:00:08]} 5. e4 {[%emt 0:01:22]} c5 {[%emt 0:00:23]} 6. d5 {[%emt 0:04:37]} Be7 {[%emt 0:02:17]} 7. Bxf6 {[%emt 0:03:58]} Bxf6 {[%emt 0:03:46]} 8. Bxc4 {[%emt 0:00:54]} exd5 {[%emt 0:03:08]} 9. exd5 {[%emt 0:02:00]} O-O {[%emt 0:03:34]} 10. Nge2 {[%emt 0:01:23]} Nd7 {[%emt 0:19:08]} 11. O-O {[%emt 0:00:35]} Ne5 {[%emt 0:02:42]} 12. Bb3 {[%emt 0:01:23]} Bf5 {[%emt 0:10:57]} 13. Bc2 {[%emt 0:05:09]} Qd7 {[%emt 0:01:44]} 14. Ng3 {[%emt 0:01:30]} Bxc2 {[%emt 0:17:42]} 15. Qxc2 {[%emt 0:00:04]} c4 {[%emt 0:13:37]} 16. Nh5 {[%emt 0:08:35]} Bd8 {[%emt 0:03:51]} 17. Rae1 {[%emt 0:09:23]} f6 {[%emt 0:01:56]} 18. Nf4 {[%emt 0:07:45]} Bb6 {[%emt 0:03:15]} 19. Ne6 {[%emt 0:01:27]} Rfe8 {[%emt 0:00:18]} 20. Re4 {[%emt 0:01:29]} Rac8 {[%emt 0:02:56]} 21. Qe2 {[%emt 0:02:37]} Qf7 {[%emt 0:02:32]} 22. Kh1 {[%emt 0:03:22]} Nd3 {[%emt 0:00:49]} 23. Rg4 {[%emt 0:01:12]} g6 {[%emt 0:00:24]} 24. Ne4 {[%emt 0:01:32]} Rxe6 {[%emt 0:01:02]} 25. dxe6 {[%emt 0:00:16]} Qxe6 {[%emt 0:00:01]} 26. Qd1 {[%emt 0:11:06]} f5 {[%emt 0:00:13]} 27. Ng5 {[%emt 0:00:10]} Qd5 {[%emt 0:01:42]} 28. Nh3 {[%emt 0:11:56]} fxg4 {[%emt 0:00:25]} 29. Qxg4 {[%emt 0:00:00]} Qf5 {[%emt 0:00:32]} 30. Qh4 {[%emt 0:00:42]} Kg7 {[%emt 0:01:52]} 31. Kg1 {[%emt 0:02:54]} Bc5 {[%emt 0:00:54]} 32. g4 {[%emt 0:01:05]} Ne5 {[%emt 0:03:30]} 33. Qxh7+ {[%emt 0:08:12]} Kxh7 {[%emt 0:00:07]} 34. gxf5 {[%emt 0:00:01]} gxf5 {[%emt 0:00:14]} 35. Rd1 {[%emt 0:00:03]} Nd3 {[%emt 0:00:17]} 36. b3 {[%emt 0:00:13]} b5 {[%emt 0:00:04]} 37. Kg2 {[%emt 0:01:45]} Kg6 {[%emt 0:00:18]} 38. Kf3 {[%emt 0:00:45]} Kf6 {[%emt 0:00:35]} 39. Rd2 {[%emt 0:01:02]} Ne5+ {[%emt 0:00:42]} 40. Ke2 {[%emt 0:00:00]} Nd3 {[%emt 0:00:00]} 41. bxc4 {[%emt 0:01:17]} bxc4 {[%emt 0:00:40]} 42. Rc2 {[%emt 0:00:48]} Bb6 {[%emt 0:00:42]} 43. Kf1 {[%emt 0:01:48]} Rh8 {[%emt 0:04:22]} 44. Ng1 {[%emt 0:00:33]} Rxh2 {[%emt 0:00:35]} 0-1

[Event "ESTCC-50 2025"]
[Site "Swidnica"]
[Date "2025.04.07"]
[Round "3.5"]
[White "Bischoff, Klaus"]
[Black "Buckley, Graeme N"]
[Result "1-0"]
[Annotator "RC"]
[ECO "A33"]
[WhiteElo "2425"]
[BlackElo "2268"]
[PlyCount "81"]
[EventDate "2025.04.05"]
[EventType "team-tourn"]
[EventCountry "POL"]
[SourceTitle "playchess.com"]
[Source "ChessBase"]
[SourceQuality "1"]
[WhiteTeam "Germany"]
[BlackTeam "England"]
[WhiteTeamCountry "GER"]
[BlackTeamCountry "ENG"]
[TimeControl "40/5400+30:1800+30"]

1. Nf3 {[%emt 0:00:13]} c5 {[%emt 0:00:13]} 2. c4 {[%emt 0:00:16]} Nc6 {[%emt 0:00:04]} 3. d4 {[%emt 0:00:35]} cxd4 {[%emt 0:00:10]} 4. Nxd4 {[%emt 0:00:08]} Nf6 {[%emt 0:01:45]} 5. Nc3 {[%emt 0:01:04]} e6 {[%emt 0:00:49]} 6. a3 {[%emt 0:01:35]} d5 {[%emt 0:02:11]} 7. cxd5 {[%emt 0:01:42]} exd5 {[%emt 0:00:20]} 8. e3 {[%emt 0:01:56]} Bd6 {[%emt 0:06:05]} 9. Be2 {[%emt 0:02:02]} O-O {[%emt 0:01:56]} 10. O-O {[%emt 0:01:20]} Re8 {[%emt 0:03:58]} 11. Bf3 {[%emt 0:09:01]} Be5 {[%emt 0:22:51]} 12. Nce2 {[%emt 0:03:32]} Qd6 {[%emt 0:09:06]} 13. g3 {[%emt 0:04:03]} Bh3 {[%emt 0:00:24]} 14. Bg2 {[%emt 0:00:57]} Qd7 {[%emt 0:02:56]} 15. Nf3 {[%emt 0:04:06]} Bc7 {[%emt 0:03:11]} 16. b3 {[%emt 0:04:35]} Ne4 {[%emt 0:11:41]} 17. Bb2 {[%emt 0:02:12]} Bxg2 {[%emt 0:04:40]} 18. Kxg2 {[%emt 0:00:10]} Re6 {[%emt 0:00:13]} 19. Nf4 {[%emt 0:08:38]} Bxf4 {[%emt 0:01:33]} 20. exf4 {[%emt 0:00:09]} Rh6 {[%emt 0:02:16]} 21. h4 {[%emt 0:02:38]} Rd8 {[%emt 0:04:24]} 22. Qd3 {[%emt 0:02:51]} Qg4 23. Rad1 {[%emt 0:02:21]} Rg6 {[%emt 0:06:10]} 24. Ng5 {[%emt 0:02:10]} h6 {[%emt 0:01:24]} 25. Qf3 {[%emt 0:02:09]} Qf5 {[%emt 0:02:39]} 26. Nh3 {[%emt 0:23:16]} Re8 {[%emt 0:00:02]} 27. Rfe1 {[%emt 0:03:13]} Rge6 {[%emt 0:01:12]} 28. g4 {[%emt 0:01:54]} Rg6 {[%emt 0:01:24]} 29. Ng5 {[%emt 0:00:40]} Qd7 {[%emt 0:04:39]} 30. f5 {[%emt 0:00:26]} Nxg5 {[%emt 0:01:08]} 31. hxg5 {[%emt 0:00:40]} Rxe1 {[%emt 0:03:02]} 32. Rxe1 {[%emt 0:00:57]} Rxg5 {[%emt 0:00:41]} 33. Bc1 {[%emt 0:00:47]} Nd4 {[%emt 0:00:03]} 34. Qd1 {[%emt 0:00:12]} Nc2 {[%emt 0:01:38]} 35. Re5 {[%emt 0:00:56]} f6 {[%emt 0:01:59]} 36. Rxd5 {[%emt 0:00:47]} Rxg4+ {[%emt 0:00:02]} 37. Kh3 {[%emt 0:00:12]} Qc6 {[%emt 0:01:14]} 38. Kxg4 {[%emt 0:00:29]} Kh7 {[%emt 0:00:33]} 39. Bxh6 {[%emt 0:01:48]} Ne1 {[%emt 0:00:42]} 40. Bf4 {[%emt 0:00:00]} Qe8 {[%emt 0:00:00]} 41. f3 {[%emt 0:02:08]} 1-0

[Event "ESTCC-50 2025"]
[Site "Swidnica"]
[Date "2025.04.07"]
[Round "3.6"]
[White "Dickenson, Neil F"]
[Black "Holzke, Frank"]
[Result "0-1"]
[Annotator "RC"]
[ECO "B34"]
[WhiteElo "2250"]
[BlackElo "2412"]
[PlyCount "80"]
[EventDate "2025.04.05"]
[EventType "team-tourn"]
[EventCountry "POL"]
[SourceTitle "playchess.com"]
[Source "ChessBase"]
[SourceQuality "1"]
[WhiteTeam "England"]
[BlackTeam "Germany"]
[WhiteTeamCountry "ENG"]
[BlackTeamCountry "GER"]
[TimeControl "40/5400+30:1800+30"]

1. e4 {[%emt 0:00:05]} c5 {[%emt 0:00:30]} 2. Nc3 {[%emt 0:00:20]} Nc6 {[%emt 0:00:48]} 3. Nge2 {[%emt 0:00:30]} g6 {[%emt 0:00:32]} 4. d4 {[%emt 0:00:34]} cxd4 {[%emt 0:00:20]} 5. Nxd4 {[%emt 0:00:07]} Bg7 {[%emt 0:00:24]} 6. Nb3 {[%emt 0:00:21]} Nf6 {[%emt 0:00:48]} 7. Be2 {[%emt 0:00:08]} O-O {[%emt 0:02:48]} 8. O-O {[%emt 0:00:52]} d6 {[%emt 0:00:56]} 9. Bg5 {[%emt 0:00:43]} Bd7 {[%emt 0:03:33]} 10. f4 {[%emt 0:02:53]} Rc8 {[%emt 0:00:40]} 11. Kh1 {[%emt 0:00:56]} a6 {[%emt 0:12:20]} 12. a4 {[%emt 0:02:11]} Nb4 {[%emt 0:01:03]} 13. Bf3 {[%emt 0:04:16]} Qc7 {[%emt 0:17:54]} 14. Rf2 {[%emt 0:19:31]} Rfd8 {[%emt 0:06:26]} 15. a5 {[%emt 0:05:02]} b5 {[%emt 0:08:55]} 16. Rd2 {[%emt 0:02:11]} h5 {[%emt 0:07:16]} 17. h3 {[%emt 0:02:22]} Be6 {[%emt 0:02:35]} 18. Nd4 {[%emt 0:08:13]} Bc4 {[%emt 0:01:26]} 19. f5 {[%emt 0:03:25]} Nh7 {[%emt 0:03:10]} 20. Be3 {[%emt 0:01:06]} e6 {[%emt 0:03:29]} 21. fxg6 {[%emt 0:10:36]} fxg6 {[%emt 0:00:15]} 22. Nde2 {[%emt 0:08:34]} Qf7 {[%emt 0:05:18]} 23. Bb6 {[%emt 0:08:30]} Be5 {[%emt 0:00:25]} 24. Bd4 {[%emt 0:07:29]} Nc6 {[%emt 0:03:08]} 25. Bxe5 {[%emt 0:01:02]} dxe5 {[%emt 0:00:28]} 26. b3 {[%emt 0:00:33]} Bxe2 {[%emt 0:02:03]} 27. Nxe2 {[%emt 0:00:11]} Ng5 {[%emt 0:00:54]} 28. Ng1 {[%emt 0:05:00]} Qf4 {[%emt 0:02:22]} 29. Rxd8+ {[%emt 0:00:06]} Rxd8 {[%emt 0:00:13]} 30. Qe1 {[%emt 0:00:04]} Nd4 {[%emt 0:05:56]} 31. Qc3 {[%emt 0:01:34]} Qg3 {[%emt 0:03:59]} 32. Qd3 {[%emt 0:04:45]} Kh7 {[%emt 0:01:15]} 33. Ne2 {[%emt 0:00:57]} Qf2 {[%emt 0:00:32]} 34. Nxd4 {[%emt 0:00:14]} Rxd4 {[%emt 0:00:38]} 35. Qe2 {[%emt 0:00:15]} Qxe2 {[%emt 0:01:28]} 36. Bxe2 {[%emt 0:00:07]} Nxe4 {[%emt 0:00:12]} 37. Kg1 {[%emt 0:00:46]} Nc3 {[%emt 0:00:53]} 38. Re1 {[%emt 0:02:06]} e4 {[%emt 0:00:59]} 39. g4 {[%emt 0:00:24]} Rd2 {[%emt 0:00:53]} 40. Kf1 {[%emt 0:00:00]} Kh6 {[%emt 0:00:00]} 0-1

[Event "ESTCC-50 2025"]
[Site "Swidnica"]
[Date "2025.04.07"]
[Round "3.7"]
[White "Boensch, Uwe"]
[Black "Duncan, Chris R"]
[Result "1-0"]
[Annotator "TA"]
[ECO "D30"]
[WhiteElo "2465"]
[BlackElo "2178"]
[PlyCount "79"]
[EventDate "2025.04.05"]
[EventType "team-tourn"]
[EventCountry "POL"]
[SourceTitle "playchess.com"]
[Source "ChessBase"]
[SourceQuality "1"]
[WhiteTeam "Germany"]
[BlackTeam "England"]
[WhiteTeamCountry "GER"]
[BlackTeamCountry "ENG"]
[TimeControl "40/5400+30:1800+30"]

{[%evp 9,79,23,31,27,34,33,33,26,30,33,32,30,33,25,34,25,35,32,40,36,30,31,42,17,42,36,33,55,41,14,45,32,41,50,48,49,52,20,21,15,72,69,90,39,91,59,62,53,64,53,78,24,31,13,12,14,86,77,303,321,1362,1333,1097,1097,29989,29990,29990,29991,29991,29988,29989,1977]} 1. d4 {[%emt 0:00:03]} d5 {[%emt 0:00:04]} 2. c4 {[%emt 0:00:08]} e6 {[%emt 0:00:13]} 3. Nf3 {[%emt 0:00:13]} a6 {[%emt 0:00:08]} 4. cxd5 {[%emt 0:07:18]} exd5 {[%emt 0:00:18]} 5. Nc3 {[%emt 0:00:11]} c6 {[%emt 0:00:05]} 6. Qc2 {[%emt 0:07:47] D31: Queen's Gambit Declined: Semi-Slav without ...Nf6 (+ Marshall Gambit and Noteboom) and Exchange Variation lines without ...Nf6.} Nf6 {[%emt 0:00:25]} 7. Bg5 {[%emt 0:00:10]} Be6 {[%emt 0:00:21] The main line 7...Be6 scores better than 7...Be7.} 8. e3 {[%emt 0:00:06] White is slightly better.} Nbd7 {[%emt 0:00:55]} 9. Bd3 {[%emt 0:00:34]} h6 {[%emt 0:04:27]} 10. Bf4 {[%emt 0:00:42]} Be7 {[%emt 0:02:04]} 11. h3 {[%emt 0:00:51]} c5 {[%emt 0:10:31]} 12. dxc5 {[%emt 0:27:54]} Nxc5 {[%emt 0:01:15]} 13. O-O {[%emt 0:00:09]} O-O {[%emt 0:02:59]} 14. Rfd1 {[%emt 0:00:38]} Rc8 {[%emt 0:05:11]} 15. Be5 {[%emt 0:01:51]} Qd7 $146 {[%emt 0:07:39]} (15... Qa5 16. a3 Nxd3 17. Qxd3 Rfd8 18. b4 Qb6 19. Bd4 Qc6 20. Ne5 Qd6 21. b5 Nd7 22. Nxd7 Rxd7 {½-½ Vesterli,M (2138)-Overmark,O (1763) Copenhagen Challenge 2016 (3)}) 16. Qe2 {[%emt 0:06:27]} Rfd8 {[%emt 0:05:05]} 17. Bc2 {[%emt 0:01:45]} Qe8 {[%emt 0:11:46]} 18. Nd4 {[%emt 0:01:19]} Ncd7 {[%emt 0:03:52]} 19. Bxf6 {[%emt 0:09:01]} Nxf6 {[%emt 0:05:51]} 20. e4 {[%emt 0:09:56]} dxe4 {[%emt 0:17:26]} 21. Nxe6 $1 {[%emt 0:00:23]} fxe6 {[%emt 0:00:11]} 22. Nxe4 {[%emt 0:02:38]} Qc6 {[%emt 0:00:59]} 23. Nxf6+ {[%emt 0:03:54]} Bxf6 {[%emt 0:00:08]} 24. Bb3 {[%emt 0:00:15]} Rxd1+ {[%emt 0:04:57]} (24... Kh8 $11) 25. Rxd1 $16 {[%emt 0:00:02][%csl Oe6] White attacks a weakness} (25. Qxd1 Bxb2 26. Rb1 Ba3 $11) 25... Re8 {[%emt 0:02:36]} 26. Re1 {[%emt 0:06:09]} (26. g3 $16) 26... Kf7 {[%emt 0:02:34]} ({Black should try} 26... Kh8 $14) 27. Qd2 {[%emt 0:02:03]} Re7 {[%emt 0:06:52]} 28. Qf4 {[%emt 0:00:27] White attacks} Qc5 {[%emt 0:01:15]} 29. Qg4 {[%emt 0:02:04][%cal Rb3e6] White is more active. Black is weak on the light squares} Qc6 {[%emt 0:00:35][%cal Og7g6]} 30. Kh1 {[%emt 0:05:26]} ({White should play} 30. Re2 $16) 30... Bxb2 {[%emt 0:02:24]} 31. f4 {[%emt 0:00:03]} (31. h4 {keeps more tension.} b5 32. Re2 a5 33. a4) 31... Kf8 {[%emt 0:02:12]} 32. Bxe6 {[%emt 0:00:33]} Bf6 {[%emt 0:00:32] [#]} (32... h5 $11 {remains equal.} 33. Qf5+ (33. Qxh5 $2 Rxe6 34. Qf5+ Rf6 $19) 33... Bf6) 33. f5 $1 {[%emt 0:00:41] aiming for Qg6.} Qe8 {[%emt 0:00:32] [#] This move loses the game for Black.} (33... Bg5 $16) 34. Rc1 $1 $18 {[%emt 0:00:21]} Rxe6 $2 {[%emt 0:00:34]} (34... Qb5 35. Qd1 Re8) 35. fxe6 {[%emt 0:00:07] KQR-KQB} Kg8 {[%emt 0:00:33]} 36. Rc7 {[%emt 0:01:51]} Qb5 {[%emt 0:00:24]} 37. Rc8+ {[%emt 0:00:45] White mates.} Kh7 {[%emt 0:00:03]} 38. Qe4+ {[%emt 0:00:11]} g6 {[%emt 0:00:13]} 39. Rc7+ {[%emt 0:00:26]} Kh8 {[%emt 0:00:19]} 40. e7 {[%emt 0:00:00] Weighted Error Value: White=0.10 (very precise) /Black=0.57  Loses game:     	---       	Black=1      Mistake:       	White=2     	Black=4      Inaccurate:     	White=3     	Black=1      OK:         	White=13    	Black=9      Strong:       	White=3     	---} ({Weaker is} 40. Qxg6 Qf1+ 41. Kh2 Be5+ 42. g3 Qf2+ (42... Bxc7 43. Qe8+ Kg7 44. Qd7+ Kg6 45. Qe8+ Kg7 46. Qd7+ Kg6 47. Qe8+ Kg7 $11) 43. Kh1 Qf1+ 44. Kh2 Qe2+ 45. Kh1 Qe1+ (45... Bxc7 46. Qf6+ Kh7 47. Qf5+ Kh8 48. Qf8+ Kh7 49. Qf7+ Kh8 50. Qxc7 $11) 46. Kh2 Qf2+ (46... Bxc7 47. Qf6+ Kh7 48. Qf7+ Kh8 49. Qe8+ Kh7 50. Qf7+ Kh8 51. Qe8+ Kh7 52. Qf7+ $11) 47. Kh1 Qe1+ 48. Kg2 Qe2+ (48... Bxc7 $2 {perishes.} 49. Qe8+ Kh7 50. Qd7+ Kh8 51. Qc8+ Kg7 52. Qxc7+ Kh8 53. Qc8+ Kg7 54. Qxb7+ Kh8 55. Qc8+ Kh7 56. Qd7+ Kg8 57. Kf3 $18) 49. Kh1 Qf1+ 50. Kh2 $11) (40. Qf4 $142 Bg7 41. e7 Kh7 42. Qf7 (42. Rxb7 Qxb7 43. e8=Q Qb1+ 44. Kh2 Qd3 $18) 42... Qe2 43. Qxg7+ (43. e8=B Qe1+ 44. Kh2 Qe5+ 45. Kg1 Qe1+ 46. Qf1 Qxe8 $18) 43... Kxg7 44. e8=Q+ (44. e8=N+ $2 Kf8 $19) 44... Kf6 45. Rf7+ (45. Qxe2 b6 46. Rc6+ Kf7 47. Qe6+ Kf8 48. Rc8+ Kg7 49. Qe7#) 45... Kg5 46. Qxe2 (46. Qd8+ Kh5 47. g4+ Qxg4 48. hxg4+ Kxg4 49. Qd1+ Kg5 50. Kg2 b6 51. Kh3 h5 52. Qd2#) 46... h5 47. Qe7+ Kh6 48. Rh7#) 1-0